lending/lending_fUSD_20260124
["ID","MTS","AMOUNT","RATE_DAILY","PERIOD"]
[403208570,1769267446165,-800.0,0.0001726,2]
[403208572,1769267446174,-800.0,0.0001726,2]
[403208574,1769267446183,-800.0,0.0001726,2]
[403208576,1769267446191,-800.0,0.0001726,2]
[403208578,1769267446200,-800.0,0.0001726,2]
[403208609,1769267446209,-800.0,0.0001726,2]
[403208616,1769267446540,-800.0,0.0001726,2]
[403208618,1769267446557,-800.0,0.0001726,2]
[403208620,1769267446566,-800.0,0.0001726,2]
[403208622,1769267446576,-800.0,0.0001726,2]
[403208624,1769267446586,-800.0,0.0001726,2]
[403208626,1769267446595,-800.0,0.0001726,2]
[403208628,1769267446605,-800.0,0.0001726,2]
[403208630,1769267446614,-800.0,0.0001726,2]
[403208632,1769267446623,-800.0,0.0001726,2]
[403208634,1769267446634,-800.0,0.0001726,2]
[403208636,1769267446644,-800.0,0.0001726,2]
[403208638,1769267446654,-800.0,0.0001726,2]
[403208641,1769267446663,-800.0,0.0001726,2]
[403208643,1769267446672,-800.0,0.0001726,2]
[403208645,1769267446681,-800.0,0.0001726,2]
[403208647,1769267446690,-800.0,0.0001726,2]
[403208649,1769267446699,-800.0,0.0001726,2]
[403208651,1769267446708,-800.0,0.0001726,2]
[403208653,1769267446718,-800.0,0.0001726,2]
[403208655,1769267446727,-800.0,0.0001726,2]
[403208657,1769267446736,-800.0,0.0001726,2]
[403208659,1769267446745,-800.0,0.0001726,2]
[403208661,1769267446754,-800.0,0.0001726,2]
[403208663,1769267446764,-800.0,0.0001726,2]
[403208665,1769267446773,-800.0,0.0001726,2]
[403208667,1769267446783,-452.0,0.0001726,2]
[403208669,1769267446792,-500.0,0.0001726,2]
[403208671,1769267446801,-617.0,0.0001726,2]
[403208673,1769267446810,-200.0,0.0001726,2]
[403208675,1769267446820,-200.0,0.0001726,2]
[403208677,1769267446829,-200.0,0.0001726,2]
[403208679,1769267446838,-200.0,0.0001726,2]
[403208681,1769267446848,-200.0,0.0001726,2]
[403208683,1769267446857,-200.0,0.0001726,2]
[403208685,1769267446866,-200.0,0.0001726,2]
[403208687,1769267446875,-200.0,0.0001726,2]
[403208689,1769267446884,-200.0,0.0001726,2]
[403208691,1769267446893,-200.0,0.0001726,2]
[403208693,1769267446902,-200.0,0.0001726,2]
[403208695,1769267446910,-200.0,0.0001726,2]
[403208697,1769267446919,-200.0,0.0001726,2]
[403208699,1769267446928,-200.0,0.0001726,2]
[403208701,1769267446937,-200.0,0.0001726,2]
[403208703,1769267446946,-200.0,0.0001726,2]
[403208705,1769267446957,-200.0,0.0001726,2]
[403208707,1769267446967,-200.0,0.0001726,2]
[403208709,1769267446976,-200.0,0.0001726,2]
[403208711,1769267446985,-200.0,0.0001726,2]
[403208713,1769267446996,-200.0,0.0001726,2]
[403208715,1769267447005,-200.0,0.0001726,2]
[403208717,1769267447016,-200.0,0.0001726,2]
[403208719,1769267447025,-200.0,0.0001726,2]
[403208721,1769267447034,-200.0,0.0001726,2]
[403208724,1769267447044,-200.0,0.0001726,2]
[403208726,1769267447054,-200.0,0.0001726,2]
[403208727,1769267447063,-200.0,0.0001726,2]
[403208730,1769267447073,-200.0,0.0001726,2]
[403208732,1769267447084,-200.0,0.0001726,2]
[403208734,1769267447094,-200.0,0.0001726,2]
[403208736,1769267447103,-200.0,0.0001726,2]
[403208738,1769267447112,-200.0,0.0001726,2]
[403208740,1769267447122,-200.0,0.0001726,2]
[403208742,1769267447131,-200.0,0.0001726,2]
[403208744,1769267447140,-200.0,0.0001726,2]
[403208746,1769267447149,-188.0,0.0001726,2]
[403208748,1769267447160,-1000.0,0.0001726,2]
[403208750,1769267447170,-151.0,0.00017262,2]
[403208752,1769267447179,-885.86649465,0.00017262,2]
[403208754,1769267447189,-181.08010149,0.00017262,2]
[403208756,1769267447198,-343.10236963,0.00017262,2]
[403208758,1769267447207,-151.3661,0.000173,2]
[403208760,1769267447217,-165.72,0.000173,3]
[403208762,1769267447226,-3552.7,0.000173,2]
[403208764,1769267447235,-560.21,0.00017346,2]
[403208766,1769267447245,-162.038,0.00017378,2]
[403208768,1769267447255,-1408.0,0.00017378,2]
[403208770,1769267447264,-615.979,0.00017378,2]
[403208772,1769267447274,-1333.0,0.00017378,2]
[403208774,1769267447283,-302.0,0.00017378,2]
[403208776,1769267447293,-916.0,0.00017378,2]
[403208778,1769267447303,-1213.523,0.00017378,2]
[403208780,1769267447313,-567.0,0.00017378,2]
[403208782,1769267447323,-2442.0,0.00017378,2]
[403208784,1769267447332,-4830.0,0.00017378,2]
[403208786,1769267447342,-867.75,0.00017399,2]
[403208788,1769267447352,-3552.7,0.00017417,2]
[403208791,1769267447362,-328.57,0.00017483,2]
[403208793,1769267447372,-3063.0,0.00017498,2]
[403208795,1769267447382,-152.0,0.00017511,6]
[403208797,1769267447392,-200.0,0.00017516,2]
[403208799,1769267447401,-165.97106181,0.00017516,2]
[403208801,1769267447411,-500.0,0.00017516,2]
[403208803,1769267447420,-503.07183782,0.00017516,2]
[403208805,1769267447429,-2106.81558128,0.00017516,2]
[403208807,1769267447439,-1073.98879249,0.00017516,2]
[403208809,1769267447448,-2000.0,0.00017516,2]
[403208811,1769267447457,-2000.0,0.00017516,2]
[403208813,1769267447467,-2000.0,0.00017516,2]
[403208815,1769267447477,-2000.0,0.00017516,2]
[403208817,1769267447486,-534.24079626,0.00017516,2]
[403208819,1769267447496,-2000.0,0.00017516,2]
[403208821,1769267447505,-2000.0,0.00017516,2]
[403208823,1769267447515,-2000.0,0.00017516,2]
[403208826,1769267447525,-2000.0,0.00017516,2]
[403208828,1769267447534,-348.0638206,0.00017516,2]
[403208830,1769267447544,-2000.0,0.00017516,2]
[403208832,1769267447554,-2000.0,0.00017516,2]
[403208834,1769267447567,-3552.7,0.00017533,2]
[403208836,1769267447576,-1884.94,0.00017534,2]
[403208838,1769267447586,-1569.22282917,0.00017534,2]
[403208840,1769267447595,-1000.0,0.00017534,2]
[403208842,1769267447606,-328.57,0.00017548,2]
[403208844,1769267447615,-179.89,0.00017576,2]
[403208846,1769267447624,-183.65,0.00017576,2]
[403208848,1769267447635,-1230.89,0.00017576,2]
[403208850,1769267447645,-150.0,0.00017576,2]
[403208852,1769267447654,-558.65,0.00017576,2]
[403208854,1769267447664,-468.53,0.00017576,2]
[403208856,1769267447674,-558.65,0.00017576,2]
[403208858,1769267447683,-403.57,0.00017576,2]
[403208860,1769267447693,-1230.89,0.00017576,2]
[403208862,1769267447702,-172.14,0.00017576,2]
[403208864,1769267447713,-179.89,0.00017576,2]
[403208866,1769267447723,-179.89,0.00017576,2]
[403208868,1769267447734,-150.66,0.0001759,2]
[403208871,1769267447743,-150.81,0.0001759,2]
[403208872,1769267447752,-150.0,0.0001759,2]
[403208874,1769267447762,-866.0,0.000176,2]
[403208876,1769267447771,-161.0,0.000176,3]
[403208879,1769267447780,-161.0,0.000176,3]
[403208881,1769267447790,-328.57,0.00017614,2]
[403208883,1769267447800,-172.8753019,0.00017616,3]
[403208885,1769267447809,-560.21,0.0001762,2]
[403208887,1769267447818,-500.0,0.00017639,2]
[403208889,1769267447828,-43947.56453849,0.0001764,2]
[403208891,1769267447838,-5404.10438685,0.0001764,2]
[403208893,1769267447847,-5888.0,0.00017645,2]
[403208895,1769267447857,-3552.7,0.0001765,2]
[403208897,1769267447868,-866.0,0.00017666,2]
[403208899,1769267447878,-13249.34069826,0.0001767,2]
[403208901,1769267447887,-23373.40748626,0.0001767,2]
[403208903,1769267447897,-34965.21972776,0.0001767,2]
[403208905,1769267447906,-47309.1795,0.0001767,2]
[403208907,1769267447916,-867.75,0.00017673,2]
[403208909,1769267447926,-857.0,0.0001768,2]
[403208911,1769267447935,-3396.08042674,0.000177,2]
[403208914,1769267447945,-2000.0,0.000177,2]
[403208916,1769267447954,-929.63069455,0.0001773,2]
[403208917,1769267447964,-3552.7,0.00017767,2]
[403208919,1769267447974,-150.0,0.00017775,2]
[403208922,1769267447983,-252.05994087,0.00017775,2]
[403208924,1769267447993,-150.0,0.00017775,2]
[403208926,1769267448002,-150.0,0.00017775,2]
[403208928,1769267448012,-1884.94,0.00017808,2]
[403208929,1769267448022,-500.0,0.00017808,2]
[403208931,1769267448031,-1000.0,0.00017808,2]
[403208934,1769267448040,-918.64355495,0.0001781,2]
[403208935,1769267448049,-187.78006525,0.0001781,2]
[403208937,1769267448059,-964.19225,0.0001782,2]
[403208939,1769267448068,-964.19226,0.0001782,2]
[403208941,1769267448079,-231.38369303,0.0001782,2]
[403208944,1769267448090,-233.98,0.00017828,2]
[403208945,1769267448101,-96953.83922531,0.0001783,2]
[403208947,1769267448111,-197.58025142,0.00017846,2]
[403208949,1769267448121,-500.0,0.00017846,2]
[403208951,1769267448131,-233.98,0.00017846,2]
[403208953,1769267448142,-25000.0,0.00017847,3]
[403208955,1769267448151,-500.0,0.0001785,2]
[403208957,1769267448161,-500.0,0.0001785,2]
[403208959,1769267448171,-500.0,0.0001785,2]
[403208961,1769267448180,-200.0,0.00017855,2]
[403208963,1769267448189,-25000.0,0.00017856,3]
[403208965,1769267448198,-200.0,0.00017856,2]
[403208967,1769267448207,-563.50315697,0.00017863,2]
[403208969,1769267448217,-233.98,0.00017864,2]
[403208971,1769267448226,-25000.0,0.00017865,3]
[403208973,1769267448235,-190.76,0.00017866,2]
[403208975,1769267448244,-151.0,0.00017867,2]
[403208977,1769267448254,-151.0,0.00017867,2]
[403208979,1769267448263,-151.0,0.00017867,2]
[403208981,1769267448272,-151.0,0.00017867,2]
[403208983,1769267448282,-151.0,0.00017867,2]
[403208985,1769267448291,-151.0,0.00017867,2]
[403208987,1769267448300,-151.0,0.00017867,2]
[403208989,1769267448310,-151.0,0.00017867,2]
[403208991,1769267448319,-151.0,0.00017867,2]
[403208993,1769267448328,-151.0,0.00017867,2]
[403208995,1769267448337,-151.0,0.00017867,2]
[403208996,1769267448347,-151.0,0.00017867,2]
[403208998,1769267448355,-151.0,0.00017867,2]
[403209000,1769267448365,-151.0,0.00017867,2]
[403209002,1769267448375,-151.0,0.00017867,2]
[403209004,1769267448384,-151.0,0.00017867,2]
[403209006,1769267448393,-151.0,0.00017867,2]
[403209008,1769267448403,-151.0,0.00017867,2]
[403209010,1769267448412,-151.0,0.00017867,2]
[403209012,1769267448422,-151.0,0.00017867,2]
[403209014,1769267448432,-151.0,0.00017867,2]
[403209016,1769267448441,-151.0,0.00017867,2]
[403209018,1769267448450,-151.0,0.00017867,2]
[403209020,1769267448460,-151.0,0.00017867,2]
[403209022,1769267448470,-151.0,0.00017867,2]
[403209024,1769267448482,-151.0,0.00017867,2]
[403209026,1769267448491,-151.0,0.00017867,2]
[403209028,1769267448500,-151.0,0.00017867,2]
[403209030,1769267448510,-151.0,0.00017867,2]
[403209032,1769267448519,-151.0,0.00017867,2]
[403209034,1769267448528,-151.0,0.00017867,2]
[403209036,1769267448537,-151.0,0.00017867,2]
[403209038,1769267448546,-151.0,0.00017867,2]
[403209040,1769267448561,-151.0,0.00017867,2]
[403209042,1769267448571,-151.0,0.00017867,2]
[403209044,1769267448580,-151.0,0.00017867,2]
[403209046,1769267448589,-151.0,0.00017867,2]
[403209048,1769267448599,-151.0,0.00017867,2]
[403209050,1769267448608,-151.0,0.00017867,2]
[403209052,1769267448618,-151.0,0.00017867,2]
[403209054,1769267448628,-151.0,0.00017867,2]
[403209056,1769267448637,-151.0,0.00017867,2]
[403209058,1769267448646,-151.0,0.00017867,2]
[403209060,1769267448655,-166.39156659,0.00017867,2]
[403209062,1769267448664,-151.0,0.00017867,2]
[403209064,1769267448674,-151.0,0.00017867,2]
[403209066,1769267448683,-151.0,0.00017867,2]
[403209067,1769267448692,-151.0,0.00017867,2]
[403209069,1769267448701,-151.0,0.00017867,2]
[403209071,1769267448711,-151.0,0.00017867,2]
[403209073,1769267448721,-158.0,0.00017867,2]
[403209075,1769267448731,-151.0,0.00017867,2]
[403209077,1769267448740,-151.0,0.00017867,2]
[403209079,1769267448749,-206.4391514,0.00017867,2]
[403209081,1769267448758,-151.0,0.00017867,2]
[403209083,1769267448767,-151.0,0.00017867,2]
[403209085,1769267448776,-158.58321514,0.0001787,2]
[403209087,1769267448785,-500.0,0.00017873,2]
[403209089,1769267448794,-25000.0,0.00017874,3]
[403209091,1769267448803,-158.58321514,0.00017875,2]
[403209093,1769267448812,-152.734551,0.00017878,2]
[403209095,1769267448821,-190.76,0.00017878,2]
[403209097,1769267448829,-158.58321514,0.0001788,2]
[403209099,1769267448838,-25000.0,0.00017882,3]
[403209101,1769267448846,-3552.7,0.00017883,2]
[403209103,1769267448855,-158.58321514,0.00017885,2]
[403209105,1769267448865,-190.76,0.00017889,2]
[403209106,1769267448874,-158.58321514,0.0001789,2]
[403209108,1769267448884,-593.61150569,0.0001789,2]
[403209110,1769267448894,-25000.0,0.00017891,3]
[403209112,1769267448903,-560.21,0.00017894,2]
[403209114,1769267448912,-158.58321514,0.00017895,2]
[403209116,1769267448921,-151.0,0.00017897,2]
[403209118,1769267448930,-500.0,0.00017899,2]
[403209120,1769267448940,-158.58321514,0.000179,2]
[403209122,1769267448949,-974.67365362,0.000179,2]
[403209124,1769267448958,-10000.0,0.000179,2]
[403209126,1769267448967,-25000.0,0.000179,3]
[403209128,1769267448977,-161.0,0.000179,3]
[403209130,1769267448988,-161.0,0.000179,3]
[403209132,1769267448998,-7609.85651561,0.000179,3]
[403209134,1769267449007,-38445.36467444,0.000179,2]
[403209136,1769267449016,-21653.55537339,0.000179,2]
[403209138,1769267449025,-190.80620809,0.000179,3]
[403209140,1769267449035,-13995.31137832,0.000179,2]
[403209142,1769267449043,-9480.44349339,0.000179,2]
[403209144,1769267449052,-549.64135156,0.000179,2]
[403209146,1769267449062,-276.09590455,0.000179,2]
[403209147,1769267449071,-500.0,0.00017918,2]
[403209149,1769267449080,-3063.0,0.00017941,2]
[403209151,1769267449090,-867.75,0.00017947,2]
[403209153,1769267449099,-5800.0,0.00017949,2]
[403209155,1769267449108,-5800.0,0.00017958,2]
[403209157,1769267449117,-5800.0,0.00017966,2]
[403209159,1769267449127,-500.0,0.00017969,2]
[403209161,1769267449136,-500.0,0.00017969,2]
[403209163,1769267449145,-500.0,0.00017969,2]
[403209165,1769267449154,-1000.0,0.0001797,2]
[403209167,1769267449163,-500.0,0.0001797,2]
[403209169,1769267449173,-1000.0,0.0001797,2]
[403209171,1769267449182,-500.0,0.0001797,2]
[403209173,1769267449191,-1000.0,0.0001797,2]
[403209175,1769267449201,-500.0,0.0001797,2]
[403209177,1769267449211,-1000.0,0.0001797,2]
[403209179,1769267449220,-500.0,0.0001797,2]
[403209181,1769267449229,-1000.0,0.0001797,2]
[403209183,1769267449239,-1000.0,0.0001797,2]
[403209185,1769267449248,-500.0,0.0001797,2]
[403209187,1769267449257,-500.0,0.0001797,2]
[403209188,1769267449266,-1425.13914229,0.0001797,2]
[403209190,1769267449276,-601.31337833,0.0001797,2]
[403209192,1769267449286,-500.0,0.00017972,2]
[403209194,1769267449295,-15055.0,0.00017973,2]
[403209196,1769267449304,-500.0,0.00017973,2]
[403209198,1769267449313,-500.0,0.00017973,2]
[403209200,1769267449322,-500.0,0.00017973,2]
[403209202,1769267449331,-500.0,0.00017973,2]
[403209204,1769267449341,-500.0,0.00017973,2]
[403209206,1769267449350,-500.0,0.00017973,2]
[403209208,1769267449359,-500.0,0.00017973,2]
[403209210,1769267449367,-500.0,0.00017973,2]
[403209212,1769267449376,-573.18204786,0.00017973,2]
[403209214,1769267449385,-500.0,0.00017973,2]
[403209216,1769267449394,-500.0,0.00017973,2]
[403209217,1769267449403,-500.0,0.00017973,2]
[403209219,1769267449412,-500.0,0.00017973,2]
[403209221,1769267449421,-335.93123339,0.00017973,2]
[403209223,1769267449430,-500.0,0.00017973,2]
[403209225,1769267449440,-336.33747242,0.00017973,2]
[403209227,1769267449449,-500.0,0.00017973,2]
[403209229,1769267449458,-500.0,0.00017973,2]
[403209231,1769267449467,-500.0,0.00017973,2]
[403209233,1769267449477,-500.0,0.00017973,2]
[403209234,1769267449485,-300.0,0.00017973,2]
[403209236,1769267449495,-500.0,0.00017973,2]
[403209238,1769267449504,-500.0,0.00017973,2]
[403209240,1769267449513,-500.0,0.00017973,2]
[403209242,1769267449523,-500.0,0.00017973,2]
[403209244,1769267449532,-161.20666181,0.00017973,2]
[403209246,1769267449541,-333.14308792,0.00017973,2]
[403209248,1769267449551,-150.87644931,0.00017973,2]
[403209250,1769267449561,-500.0,0.00017973,2]
[403209251,1769267449570,-161.7441045,0.00017973,2]
[403209253,1769267449579,-150.0,0.00017973,2]
[403209255,1769267449588,-500.0,0.00017973,2]
[403209257,1769267449598,-160.04994992,0.00017973,2]
[403209259,1769267449607,-160.03318119,0.00017973,2]
[403209261,1769267449616,-159.93585942,0.00017973,2]
[403209263,1769267449625,-160.04998238,0.00017973,2]
[403209265,1769267449637,-160.05079201,0.00017973,2]
[403209267,1769267449645,-150.0,0.00017973,2]
[403209269,1769267449654,-500.0,0.00017973,2]
[403209270,1769267449663,-500.0,0.00017973,2]
[403209272,1769267449672,-500.0,0.00017973,2]
[403209274,1769267449681,-500.0,0.00017973,2]
[403209276,1769267449690,-500.0,0.00017973,2]
[403209278,1769267449700,-500.0,0.00017973,2]
[403209280,1769267449709,-500.0,0.00017973,2]
[403209282,1769267449718,-500.0,0.00017973,2]
[403209284,1769267449727,-160.0507877,0.00017973,2]
[403209286,1769267449736,-160.30101054,0.00017973,2]
[403209288,1769267449745,-500.0,0.00017973,2]
[403209290,1769267449755,-500.0,0.00017973,2]
[403209292,1769267449764,-500.0,0.00017973,2]
[403209293,1769267449772,-500.0,0.00017973,2]
[403209295,1769267449782,-158.06916035,0.00017973,2]
[403209297,1769267449791,-163.10376799,0.00017973,2]
[403209299,1769267449801,-500.0,0.00017973,2]
[403209301,1769267449810,-500.0,0.00017973,2]
[403209303,1769267449819,-500.0,0.00017973,2]
[403209305,1769267449829,-500.0,0.00017973,2]
[403209307,1769267449837,-160.95253726,0.00017973,2]
[403209308,1769267449847,-164.56853003,0.00017973,2]
[403209310,1769267449855,-167.78129088,0.00017973,2]
[403209312,1769267449864,-161.91357387,0.00017973,2]
[403209314,1769267449874,-500.0,0.00017973,2]
[403209316,1769267449883,-308.89625283,0.00017973,2]
[403209318,1769267449892,-500.0,0.00017973,2]
[403209320,1769267449901,-500.0,0.00017973,2]
[403209322,1769267449910,-500.0,0.00017973,2]
[403209324,1769267449919,-521.52144255,0.00017973,2]
[403209326,1769267449928,-500.0,0.00017973,2]
[403209328,1769267449937,-163.215227,0.00017973,2]
[403209330,1769267449947,-500.0,0.00017973,2]
[403209332,1769267449956,-208.11665623,0.00017973,2]
[403209334,1769267449965,-558.82608128,0.00017973,2]
[403209336,1769267449974,-161.29695591,0.00017973,2]
[403209337,1769267449983,-512.1744801,0.00017973,2]
[403209339,1769267449992,-500.0,0.00017973,2]
[403209341,1769267450001,-180.05440168,0.00017973,2]
[403209343,1769267450011,-157.31967869,0.00017973,2]
[403209345,1769267450020,-500.0,0.00017973,2]
[403209347,1769267450029,-160.04899722,0.00017973,2]
[403209349,1769267450037,-160.05036115,0.00017973,2]
[403209351,1769267450046,-160.05242782,0.00017973,2]
[403209353,1769267450055,-160.03828545,0.00017973,2]
[403209355,1769267450064,-160.05160425,0.00017973,2]
[403209356,1769267450073,-500.0,0.00017973,2]
[403209358,1769267450082,-500.0,0.00017973,2]
[403209360,1769267450091,-500.0,0.00017973,2]
[403209362,1769267450100,-208.57012707,0.00017973,2]
[403209364,1769267450110,-165.72236604,0.00017973,2]
[403209366,1769267450119,-511.74783648,0.00017973,2]
[403209368,1769267450128,-500.0,0.00017973,2]
[403209370,1769267450137,-162.47485834,0.00017973,2]
[403209372,1769267450146,-500.0,0.00017973,2]
[403209373,1769267450154,-500.0,0.00017973,2]
[403209375,1769267450163,-500.0,0.00017973,2]
[403209377,1769267450172,-500.0,0.00017973,2]
[403209379,1769267450182,-500.0,0.00017973,2]
[403209381,1769267450191,-500.0,0.00017973,2]
[403209383,1769267450200,-548.15607658,0.00017973,2]
[403209385,1769267450209,-166.43972344,0.00017973,2]
[403209387,1769267450219,-500.0,0.00017973,2]
[403209389,1769267450228,-169.51216753,0.00017973,2]
[403209391,1769267450237,-500.0,0.00017973,2]
[403209393,1769267450246,-161.24700646,0.00017973,2]
[403209395,1769267450255,-161.03754612,0.00017973,2]
[403209396,1769267450264,-508.83270828,0.00017973,2]
[403209398,1769267450273,-500.0,0.00017973,2]
[403209400,1769267450281,-500.0,0.00017973,2]
[403209402,1769267450290,-284.08136107,0.00017973,2]
[403209404,1769267450299,-485.5720463,0.00017973,2]
[403209406,1769267450309,-500.0,0.00017973,2]
[403209408,1769267450318,-500.0,0.00017973,2]
[403209410,1769267450327,-500.0,0.00017973,2]
[403209412,1769267450336,-5800.0,0.00017975,2]
[403209414,1769267450345,-500.0,0.00017982,2]
[403209416,1769267450355,-5800.0,0.00017983,2]
[403209418,1769267450364,-150.0,0.0001799,2]
[403209420,1769267450373,-1778.85267918,0.0001799,2]
[403209422,1769267450383,-1778.85267918,0.0001799,2]
[403209424,1769267450392,-5800.0,0.00017992,2]
[403209425,1769267450401,-10677.9882181,0.00017994,2]
[403209427,1769267450412,-151.0,0.00017997,2]
[403209429,1769267450422,-150.0,0.00017999,2]
[403209431,1769267450431,-150.0,0.00017999,2]
[403209433,1769267450440,-156.86309582,0.00017999,2]
[403209435,1769267450449,-500.0,0.00017999,2]
[403209437,1769267450458,-551.95368049,0.00017999,2]
[403209439,1769267450467,-300.0,0.00017999,2]
[403209441,1769267450476,-300.0,0.00017999,2]
[403209443,1769267450486,-500.0,0.00017999,2]
[403209453,1769267450718,-500.0,0.00017999,2]
[403209454,1769267450729,-500.0,0.00017999,2]
[403209455,1769267450739,-500.0,0.00017999,2]
[403209456,1769267450748,-500.0,0.00017999,2]
[403209457,1769267450757,-500.0,0.00017999,2]
[403209458,1769267450767,-500.0,0.00017999,2]
[403209459,1769267450776,-194.88703005,0.00017999,2]
[403209460,1769267450785,-300.0,0.00017999,2]
[403209461,1769267450795,-300.0,0.00017999,2]
[403209462,1769267450804,-500.0,0.00017999,2]
[403209463,1769267450814,-500.0,0.00017999,2]
[403209464,1769267450823,-500.0,0.00017999,2]
[403209465,1769267450833,-500.0,0.00017999,2]
[403209466,1769267450842,-500.0,0.00017999,2]
[403209467,1769267450851,-637.33762737,0.00017999,2]
[403209468,1769267450860,-500.0,0.00017999,2]
[403209469,1769267450869,-311.60217601,0.00017999,2]
[403209470,1769267450878,-300.0,0.00017999,2]
[403209471,1769267450887,-300.0,0.00017999,2]
[403209472,1769267450896,-300.0,0.00017999,2]
[403209473,1769267450904,-300.0,0.00017999,2]
[403209474,1769267450914,-1102.07325121,0.00017999,5]
[403209476,1769267450923,-500.0,0.00017999,2]
[403209477,1769267450932,-500.0,0.00017999,2]
[403209479,1769267450941,-500.0,0.00017999,2]
[403209481,1769267450951,-500.0,0.00017999,2]
[403209483,1769267450960,-500.0,0.00017999,2]
[403209485,1769267450970,-500.0,0.00017999,2]
[403209487,1769267450979,-174.88782971,0.00017999,2]
[403209489,1769267450988,-300.0,0.00017999,2]
[403209491,1769267450997,-7072711.88080937,0.00018,2]
[403209725,1769267453264,-1.7e-07,0.00018,2]
[403209735,1769267453345,-442.82518552,0.00018,2]
[403209838,1769267454322,-2448.77003185,0.00011675,2]
[403209841,1769267454339,-1334.00376711,0.00011675,2]
[403209848,1769267454401,-1530.57858377,0.00011675,2]
[403209851,1769267454413,-396.4081748,0.00011675,2]
[403209861,1769267454499,-663344.25457086,0.00011675,2]
[403209959,1769267455429,500.0,0.00011674,2]
[403209968,1769267455502,311.81584775,0.00011674,2]
[403209976,1769267455573,500.0,0.00011674,2]
[403209999,1769267455777,500.0,0.00011674,2]
[403210008,1769267455850,500.0,0.00011674,2]
[403210017,1769267455926,500.0,0.00011674,2]
[403210075,1769267456486,500.0,0.00011674,2]
[403210087,1769267456601,500.0,0.00011674,2]
[403210099,1769267456705,500.0,0.00011674,2]
[403210110,1769267456807,500.0,0.00011674,2]
[403210118,1769267456878,500.0,0.00011674,2]
[403210131,1769267456993,500.0,0.00011674,2]
[403210134,1769267457010,-3803.95760231,0.00011675,2]
[403210142,1769267457084,500.0,0.00011674,2]
[403210155,1769267457202,500.0,0.00011674,2]
[403210157,1769267457214,-1518.81597667,0.00011675,2]
[403210165,1769267457286,500.0,0.00011674,2]
[403210173,1769267457360,373.54637711,0.00011674,2]
[403210180,1769267457418,126.45362289,0.00011674,2]
[403210189,1769267457504,500.0,0.00011674,2]
[403210202,1769267457627,597.92310931,0.00011674,2]
[403210210,1769267457704,500.0,0.00011674,2]
[403210221,1769267457797,500.0,0.00011674,2]
[403210231,1769267457889,500.0,0.00011674,2]
[403210234,1769267457903,-29672.783718,0.00011675,2]
[403210236,1769267457914,-749.95101885,0.00011675,2]
[403210244,1769267457986,500.0,0.00011674,2]
[403210253,1769267458066,500.0,0.00011674,2]
[403210262,1769267458140,500.0,0.00011674,2]
[403210272,1769267458236,500.0,0.00011674,2]
[403210278,1769267458426,500.0,0.00011674,2]
[403210282,1769267458537,500.0,0.00011674,2]
[403210291,1769267458611,500.0,0.00011674,2]
[403210302,1769267458710,500.0,0.00011674,2]
[403210311,1769267458792,500.0,0.00011674,2]
[403210320,1769267458863,500.0,0.00011674,2]